bitfinex/quotes_SOLUSD_20240708
["timestamp","ask_amount","ask_price","bid_price","bid_amount"]
[1720397670878,100.0,132.28,132.27,14.5]
[1720397671302,100.0,132.34,132.3,14.5]
[1720397671503,100.0,132.32,132.3,14.5]
[1720397672903,20.0,132.31,132.3,14.5]
[1720397673274,100.0,132.32,132.3,14.5]
[1720397674280,100.0,132.36,132.34,14.5]
[1720397674502,100.0,132.39,132.36,14.5]
[1720397674673,5.83148858,132.44,132.31,0.17]
[1720397674674,100.0,132.41,132.4,14.5]
[1720397675691,100.0,132.39,132.38,14.5]
[1720397676676,100.0,132.37,132.36,14.5]
[1720397676897,100.0,132.38,132.36,14.5]
[1720397678682,20.0,132.37,132.36,14.5]
[1720397678998,20.0,132.37,132.34,14.5]
[1720397678999,100.0,132.35,132.34,14.5]
[1720397679182,100.0,132.31,132.28,14.5]
[1720397679503,100.0,132.35,132.34,14.5]
[1720397680001,14.68732033,132.44,132.38,14.5]
[1720397680002,100.0,132.39,132.38,14.5]
[1720397680378,100.0,132.37,132.36,14.5]
[1720397680779,100.0,132.41,132.38,14.5]
[1720397680997,100.0,132.39,132.38,14.5]
[1720397681201,100.0,132.37,132.36,14.5]
[1720397681898,100.0,132.35,132.34,14.5]
[1720397682890,16.2178,132.46,132.34,14.5]
[1720397682891,100.0,132.37,132.34,14.5]
[1720397683091,100.0,132.37,132.36,14.5]
[1720397684801,100.0,132.34,132.33,14.5]
[1720397684982,100.0,132.32,132.31,14.5]
[1720397685304,100.0,132.34,132.31,14.5]
[1720397685517,6.1909,132.39,132.35,14.5]
[1720397685518,100.0,132.36,132.35,14.5]
[1720397685815,100.0,132.38,132.35,14.5]
[1720397686014,20.0,132.37,132.35,14.5]
[1720397686590,100.0,132.38,132.35,14.5]
[1720397686831,100.0,132.38,132.37,14.5]
[1720397687006,120.0,132.38,132.37,14.5]
[1720397688108,100.0,132.34,132.33,14.5]
[1720397688901,20.0,132.38,132.31,14.5]
[1720397688902,100.0,132.32,132.31,14.5]
[1720397691813,100.0,132.34,132.33,14.5]
[1720397692516,100.0,132.32,132.31,14.5]
[1720397694105,100.0,132.34,132.33,14.5]
[1720397694307,100.0,132.37,132.35,14.5]
[1720397694492,100.0,132.35,132.33,14.5]
[1720397695317,100.0,132.32,132.31,14.5]
[1720397698426,100.0,132.34,132.31,14.5]
[1720397698916,100.0,132.36,132.35,14.5]
[1720397699119,100.0,132.34,132.33,14.5]
[1720397702025,120.0,132.38,132.35,14.5]
[1720397702224,100.0,132.4,132.37,14.5]
[1720397702407,276.0906,132.47,132.41,14.5]
[1720397702408,100.0,132.42,132.41,14.5]
[1720397702719,100.0,132.45,132.41,14.5]
[1720397703336,100.0,132.43,132.41,14.5]
[1720397704337,100.0,132.47,132.46,14.5]
[1720397704704,100.0,132.45,132.44,14.5]
[1720397704898,100.0,132.48,132.44,14.5]
[1720397705523,100.0,132.48,132.46,14.5]
[1720397706530,100.0,132.51,132.46,14.5]
[1720397706833,100.0,132.48,132.47,14.5]
[1720397707131,100.0,132.5,132.49,14.5]
[1720397707303,100.0,132.51,132.49,14.5]
[1720397710212,100.8294306,132.53,132.52,14.5]
[1720397710416,100.8294306,132.53,132.5,14.5]
[1720397710826,100.8294306,132.53,132.52,14.5]
[1720397712107,100.0,132.51,132.49,14.5]
[1720397713118,100.0,132.44,132.43,14.5]
[1720397713352,100.0,132.42,132.41,14.5]
[1720397713810,120.0,132.42,132.41,14.5]
[1720397714010,100.0,132.37,132.36,14.5]
[1720397714206,100.0,132.35,132.32,14.5]
[1720397714410,100.0,132.35,132.34,14.5]
[1720397714638,100.0,132.36,132.35,14.5]
[1720397714835,100.0,132.39,132.37,14.5]
[1720397715354,100.0,132.41,132.37,14.5]
[1720397715522,100.0,132.38,132.37,14.5]
[1720397716225,100.0,132.46,132.45,14.5]
[1720397716433,260.1,132.51,132.45,14.5]
[1720397716434,100.0,132.48,132.45,14.5]
[1720397716619,100.0,132.48,132.38,6.2216]
[1720397716620,100.0,132.5,132.47,14.5]
[1720397716823,100.0,132.44,132.43,14.5]
[1720397717360,100.0,132.42,132.41,14.5]
[1720397717724,100.0,132.38,132.36,14.5]
[1720397717924,20.0,132.42,132.31,14.5]
[1720397717925,100.0,132.36,132.31,14.5]
[1720397718149,100.0,132.38,132.34,14.5]
[1720397718357,100.0,132.4,132.39,14.5]
[1720397718738,31.97,132.52,132.37,14.5]
[1720397718739,100.0,132.39,132.37,14.5]
[1720397718928,6.0181,132.49,132.37,14.5]
[1720397718929,0.5,132.48,132.37,14.5]
[1720397719127,0.5,132.48,132.33,14.5]
[1720397719128,100.0,132.34,132.33,14.5]
[1720397719335,100.0,132.34,132.31,14.5]
[1720397719773,100.0,132.37,132.31,14.5]
[1720397720055,100.0,132.39,132.37,14.5]
[1720397720369,100.0,132.41,132.37,14.5]
[1720397720530,100.0,132.41,132.39,14.5]
[1720397721125,100.0,132.45,132.43,14.5]
[1720397722350,260.1,132.5,132.41,14.5]
[1720397722351,100.0,132.42,132.41,14.5]
[1720397722735,100.0,132.42,132.34,15.9118]
[1720397722736,100.0,132.41,132.38,14.5]
[1720397722921,100.0,132.41,132.4,14.5]
[1720397723552,120.0,132.41,132.4,14.5]
[1720397723748,120.0,132.41,132.36,14.5]
[1720397723749,100.0,132.37,132.36,14.5]
[1720397724051,100.0,132.35,132.34,14.5]
[1720397724232,100.0,132.37,132.34,14.5]
[1720397724746,100.0,132.37,132.36,14.5]
[1720397725356,100.0,132.4,132.36,14.5]
[1720397725535,100.0,132.4,132.38,14.5]
[1720397725830,100.0,132.4,132.3,15.0]
[1720397725831,100.0,132.45,132.44,14.5]
[1720397726037,100.0,132.41,132.4,14.5]
[1720397726230,100.0,132.41,132.38,14.5]
[1720397726755,100.0,132.38,132.36,14.5]
[1720397726959,100.0,132.38,132.34,14.0]
[1720397727157,100.0,132.36,132.34,14.0]
[1720397727456,100.0,132.34,132.32,14.0]
[1720397727636,100.0,132.32,132.3,14.0]
[1720397728155,100.0,132.35,132.32,14.0]
[1720397728633,100.0,132.33,132.32,14.0]
[1720397728840,100.0,132.36,132.32,14.0]
[1720397729454,100.0,132.34,132.32,14.0]
[1720397729949,100.0,132.36,132.34,14.0]
[1720397730432,16.5212,132.42,132.32,14.0]
[1720397730433,100.0,132.33,132.32,14.0]
[1720397730636,100.0,132.3,132.29,14.0]
[1720397731747,100.0,132.32,132.31,14.0]
[1720397733447,6.3559,132.39,132.31,14.0]
[1720397733660,100.0,132.33,132.31,14.0]
[1720397733967,100.0,132.32,132.31,14.0]
[1720397734137,100.0,132.32,132.29,14.0]
[1720397734955,100.0,132.3,132.29,14.0]
[1720397735551,100.0,132.28,132.23,29.4062]
[1720397735760,260.1,132.36,132.25,14.0]
[1720397735941,100.0,132.32,132.27,14.0]
[1720397736135,260.1,132.36,132.34,14.0]
[1720397736341,100.0,132.37,132.34,14.0]
[1720397736665,100.0,132.35,132.32,14.0]
[1720397736967,100.0,132.35,132.34,14.0]
[1720397737139,100.0,132.37,132.34,14.0]
[1720397737339,100.0,132.41,132.38,14.0]
[1720397737538,100.0,132.41,132.4,14.0]
[1720397738161,100.0,132.41,132.37,14.0]
[1720397738467,100.0,132.38,132.37,14.0]
[1720397738639,100.0,132.4,132.37,14.0]
[1720397739036,100.0,132.38,132.37,14.0]
[1720397739240,21.8426,132.47,132.32,14.0]
[1720397739241,100.0,132.34,132.32,14.0]
[1720397739645,100.0,132.36,132.34,14.0]
[1720397739841,100.0,132.36,132.32,14.0]
[1720397740066,100.0,132.34,132.32,14.0]
[1720397740478,100.0,132.36,132.34,14.0]
[1720397740762,100.0,132.38,132.37,14.0]
[1720397741479,100.0,132.41,132.37,14.0]
[1720397741770,100.0,132.41,132.39,14.0]
[1720397742541,100.0,132.41,132.3,38.45]
[1720397742542,100.0,132.41,132.35,14.0]
[1720397742770,100.0,132.39,132.35,14.0]
[1720397742968,22.8426,132.47,132.35,14.0]
[1720397742969,100.0,132.41,132.35,14.0]
[1720397743150,100.0,132.41,132.37,14.0]
[1720397743347,100.0,132.41,132.39,14.0]
[1720397745881,100.0,132.49,132.45,14.0]
[1720397746040,100.0,132.49,132.47,14.0]
[1720397746242,0.8294306,132.53,132.49,14.0]
[1720397746442,100.0,132.52,132.49,14.0]
[1720397746745,100.0,132.5,132.49,14.0]
[1720397748196,100.0,132.5,132.47,14.0]
[1720397749170,100.0,132.48,132.47,14.0]
[1720397749379,100.0,132.48,132.45,14.0]
[1720397749972,100.0,132.5,132.47,14.0]
[1720397750158,100.0,132.52,132.49,14.0]
[1720397751076,0.8294306,132.53,132.49,14.0]
[1720397751260,100.0,132.52,132.49,14.0]
[1720397752178,0.8294306,132.53,132.51,14.0]
[1720397755087,100.0,132.52,132.51,14.0]
[1720397755380,0.8294306,132.53,132.51,14.0]
[1720397757878,0.8294306,132.53,132.49,14.0]
[1720397758074,0.8294306,132.53,132.51,14.0]
[1720397760282,100.0,132.52,132.51,14.0]
[1720397760686,0.8294306,132.53,132.49,14.0]
[1720397760687,100.0,132.5,132.49,14.0]
[1720397761162,100.0,132.5,132.41,16.6399]
[1720397761163,100.0,132.46,132.44,14.0]
[1720397761583,100.0,132.48,132.44,14.0]
[1720397761785,20.0,132.47,132.41,14.0]
[1720397761970,100.0,132.47,132.43,14.0]
[1720397762274,11.71810437,132.52,132.5,14.0]
[1720397762275,100.0,132.52,132.5,14.0]
[1720397762585,0.8294306,132.53,132.52,14.0]
[1720397762887,0.8294306,132.53,132.5,14.0]
[1720397763080,100.8294306,132.53,132.5,14.0]
[1720397763276,100.8294306,132.53,132.52,14.0]
[1720397763982,100.0,132.51,132.49,14.0]
[1720397764183,100.8294306,132.53,132.49,14.0]
[1720397764486,100.8294306,132.53,132.51,14.0]
[1720397764984,100.8294306,132.53,132.49,14.0]
[1720397764989,100.0,132.52,132.49,14.0]
[1720397765195,100.0,132.5,132.49,14.0]
[1720397765377,100.0,132.5,132.47,14.0]
[1720397765579,100.0,132.48,132.45,14.0]
[1720397765777,0.8294306,132.53,132.45,14.0]
[1720397765778,100.0,132.46,132.45,14.0]
[1720397766090,100.0,132.48,132.45,14.0]
[1720397766276,100.0,132.47,132.43,14.0]
[1720397766470,100.0,132.47,132.45,14.0]
[1720397767595,100.8294306,132.53,132.52,14.0]
[1720397768291,100.8294306,132.53,132.51,14.0]
[1720397769273,100.0,132.52,132.51,14.0]
[1720397769770,100.0,132.52,132.44,6.566]
[1720397769771,100.0,132.5,132.48,14.0]
[1720397770689,100.0,132.46,132.44,14.0]
[1720397770905,20.0,132.49,132.4,14.0]
[1720397770906,100.0,132.44,132.4,14.0]
[1720397771085,100.0,132.42,132.4,14.0]
[1720397771466,100.0,132.44,132.4,14.0]
[1720397772094,100.0,132.41,132.4,14.0]
[1720397774108,100.0,132.43,132.4,14.0]
[1720397774403,100.0,132.44,132.43,14.0]
[1720397775678,100.0,132.42,132.41,14.0]
[1720397775883,100.0,132.44,132.38,14.0]
[1720397776212,100.0,132.44,132.42,14.0]
[1720397776374,100.0,132.46,132.42,14.0]
[1720397776580,100.0,132.41,132.4,14.0]
[1720397777017,100.0,132.43,132.42,14.0]
[1720397777204,100.0,132.45,132.44,14.0]
[1720397777581,100.0,132.45,132.42,14.0]
[1720397777893,100.0,132.43,132.42,14.0]
[1720397778089,100.0,132.45,132.42,14.0]
[1720397778396,100.0,132.47,132.44,14.0]
[1720397778609,100.0,132.45,132.44,14.0]
[1720397778805,100.0,132.45,132.42,14.0]
[1720397779100,100.0,132.43,132.42,14.0]
[1720397779281,100.0,132.41,132.39,14.0]
[1720397780074,100.0,132.43,132.41,14.0]
[1720397780275,100.0,132.45,132.43,14.0]
[1720397780515,15.2791,132.5,132.41,14.0]
[1720397780516,100.0,132.43,132.41,14.0]
[1720397780881,100.0,132.4,132.39,14.0]
[1720397781503,100.0,132.4,132.37,14.0]
[1720397781710,1.0,132.48,132.37,14.0]
[1720397781711,100.0,132.38,132.37,14.0]
[1720397782207,100.0,132.46,132.42,14.0]
[1720397782577,100.0,132.46,132.44,14.0]
[1720397783511,100.0,132.46,132.42,14.0]
[1720397783727,100.0,132.43,132.42,14.0]
[1720397783898,100.0,132.45,132.42,14.0]
[1720397784208,100.0,132.43,132.42,14.0]
[1720397784387,100.0,132.47,132.42,14.0]
[1720397784594,100.0,132.45,132.42,14.0]
[1720397784789,100.0,132.45,132.35,15.4346]
[1720397784790,100.0,132.45,132.44,14.0]
[1720397784996,20.0,132.46,132.44,14.0]
[1720397785377,100.0,132.45,132.44,14.0]
[1720397785790,20.0,132.46,132.44,14.0]
[1720397785992,100.0,132.45,132.44,14.0]
[1720397786617,100.0,132.48,132.46,14.0]
[1720397786812,100.0,132.5,132.49,14.0]
[1720397787310,100.0,132.5,132.47,14.0]
[1720397787486,100.0,132.52,132.41,6.8515]
[1720397787685,100.0,132.52,132.41,45.3115]
[1720397787883,5.2853,132.45,132.41,45.3115]
[1720397788115,5.2849,132.46,132.41,45.3115]
[1720397788283,8.9779306,132.53,132.41,45.3115]
[1720397788784,8.9779306,132.53,132.43,6.8515]
[1720397789510,8.1485,132.51,132.43,6.8515]
[1720397789714,8.1485,132.51,132.44,0.17]
[1720397789899,108.1485,132.51,132.44,0.17]
[1720397790100,8.1485,132.51,132.44,0.17]
[1720397790302,108.9779306,132.53,132.44,0.17]
[1720397790504,108.9779306,132.53,132.45,6.0485]
[1720397790505,8.9779306,132.53,132.45,6.0485]
[1720397790698,8.9779306,132.53,132.46,0.17]
[1720397791017,100.0,132.51,132.46,0.17]
[1720397791314,108.9779306,132.53,132.46,0.17]
[1720397791609,8.9779306,132.53,132.46,0.17]
[1720397792333,100.0,132.52,132.46,0.17]
[1720397792510,0.8294306,132.53,132.46,0.17]
[1720397793097,8.9779306,132.53,132.46,0.17]
[1720397795214,0.8294306,132.53,132.46,0.17]
[1720397795613,8.1485,132.52,132.46,0.17]
[1720397796132,8.1485,132.5,132.46,0.17]
[1720397796307,100.8294306,132.53,132.46,0.17]
[1720397796508,0.8294306,132.53,132.46,7.0215]
[1720397796708,0.8294306,132.53,132.46,0.17]
[1720397796927,108.9779306,132.53,132.46,0.17]
[1720397797341,8.9779306,132.53,132.46,0.17]
[1720397797646,0.8294306,132.53,132.46,0.17]
[1720397799045,0.8294306,132.53,132.46,20.17]
[1720397799907,0.8294306,132.53,132.46,0.17]
[1720397801311,0.8294306,132.53,132.46,20.17]
[1720397801505,0.8294306,132.53,132.46,0.17]
[1720397802636,0.8294306,132.53,132.46,5.4542]
[1720397802841,0.8294306,132.53,132.46,0.17]
[1720397803226,0.8294306,132.53,132.46,5.4544]
[1720397803742,0.8294306,132.53,132.46,0.17]
[1720397804041,0.8294306,132.53,132.46,20.17]
[1720397804214,0.8294306,132.53,132.46,0.17]
[1720397806320,0.8294306,132.53,132.47,6.8515]
[1720397806520,0.8294306,132.53,132.48,0.17]
[1720397807226,0.8294306,132.53,132.46,20.0]
[1720397807227,0.8294306,132.53,132.47,0.17]
[1720397807743,0.8294306,132.53,132.47,7.0215]
[1720397810930,100.0,132.52,132.45,6.0485]
[1720397811241,0.8294306,132.53,132.45,6.0485]
[1720397811738,0.8294306,132.53,132.45,12.9]
[1720397811938,0.8294306,132.53,132.45,18.185]
[1720397812132,0.8294306,132.53,132.45,11.3335]
[1720397812332,0.8294306,132.53,132.41,5.72928569]
[1720397812524,120.8294306,132.53,132.4,6.541]
[1720397812728,128.9779306,132.53,132.41,5.2866]
[1720397812945,128.9779306,132.53,132.4,11.8279]
[1720397813149,128.9779306,132.53,132.41,12.1381]
[1720397813323,8.9779306,132.53,132.41,29.5615]
[1720397813541,8.9779306,132.53,132.44,12.1368]
[1720397813862,8.1485,132.51,132.45,0.17]
[1720397814041,8.1485,132.51,132.4,6.541]
[1720397814244,8.1485,132.49,132.4,6.541]
[1720397814722,8.1485,132.49,132.4,13.3925]
[1720397815132,8.1485,132.49,132.4,6.541]
[1720397815739,8.1485,132.47,132.4,6.541]
[1720397816023,8.1485,132.49,132.4,6.541]
[1720397817059,23.5015,132.51,132.41,7.0215]
[1720397817354,8.1485,132.51,132.43,12.1373]
[1720397817566,8.9779306,132.53,132.44,0.17]
[1720397818948,8.1485,132.51,132.44,0.17]
[1720397819428,8.1485,132.51,132.43,0.17]
[1720397819761,8.9779306,132.53,132.43,0.17]
[1720397819938,8.9779306,132.53,132.44,5.2854]
[1720397820126,8.9779306,132.53,132.45,0.17]
[1720397820328,8.1485,132.5,132.43,0.17]
[1720397820568,8.9779306,132.53,132.43,0.17]
[1720397820747,8.9779306,132.53,132.42,0.17]
[1720397821136,8.9779306,132.53,132.43,29.5615]
[1720397821446,0.8294306,132.53,132.44,51.58]
[1720397821855,8.9779306,132.53,132.44,31.58]
[1720397822159,8.1485,132.5,132.4,6.541]
[1720397822359,8.1485,132.48,132.4,6.541]
[1720397822536,108.1485,132.48,132.4,6.541]
[1720397822739,8.1485,132.46,132.4,6.541]
[1720397823369,8.1485,132.44,132.37,37.9068]
[1720397823535,8.1485,132.49,132.37,43.1949]
[1720397823747,8.1485,132.49,132.4,13.2173]
[1720397824047,15.8093,132.52,132.4,13.2173]
[1720397824048,8.1485,132.51,132.4,13.2173]
[1720397824375,15.8093,132.52,132.37,56.4152]
[1720397824376,108.1485,132.49,132.37,56.4152]
[1720397824538,108.1485,132.49,132.37,51.1271]
[1720397824857,100.0,132.47,132.38,20.0]
[1720397825440,8.1485,132.46,132.37,56.4151]
[1720397825642,8.1485,132.46,132.37,51.1271]
[1720397825856,15.8093,132.52,132.37,37.9068]
[1720397825857,8.1485,132.44,132.37,37.9068]
[1720397827247,108.1485,132.47,132.37,37.9068]
[1720397827454,100.0,132.44,132.37,37.9068]
[1720397827652,8.1485,132.43,132.37,31.41]
[1720397827848,8.1485,132.43,132.35,16.4361]
[1720397828256,108.1485,132.44,132.35,16.4361]
[1720397828644,8.1485,132.44,132.35,16.4361]
[1720397828962,8.1485,132.45,132.35,16.4361]
[1720397829162,106.3871,132.46,132.35,16.4361]
[1720397829348,8.1485,132.47,132.39,5.2873]
[1720397829561,100.0,132.46,132.38,31.41]
[1720397829753,100.0,132.46,132.39,0.17]
[1720397829956,8.1485,132.47,132.37,0.17]
[1720397830248,8.1485,132.5,132.4,6.0963]
[1720397830565,0.8294306,132.53,132.46,5.2845]
[1720397830772,0.8294306,132.53,132.48,5.2837]
[1720397830970,0.8294306,132.53,132.49,0.17]
[1720397831267,0.8294306,132.53,132.48,25.2834]
[1720397831570,0.8294306,132.53,132.49,0.17]
[1720397834171,0.8294306,132.53,132.48,0.17]
[1720397836455,0.8294306,132.53,132.44,6.231]
[1720397836456,100.8294306,132.53,132.44,6.231]
[1720397836981,108.9779306,132.53,132.44,6.231]
[1720397837144,8.1485,132.51,132.44,6.231]
[1720397837340,8.1485,132.51,132.43,31.41]
[1720397837651,100.0,132.5,132.41,6.231]
[1720397838768,100.0,132.48,132.38,15.427]
[1720397839064,100.0,132.44,132.34,21.7738]
[1720397839468,8.1485,132.47,132.34,60.0353]
[1720397839639,8.1485,132.47,132.38,31.41]
[1720397840046,8.1485,132.47,132.38,36.6977]
[1720397840352,8.1485,132.47,132.4,5.2869]
[1720397840552,100.0,132.48,132.41,0.17]
[1720397840749,14.2708,132.49,132.39,0.17]
[1720397841153,114.2708,132.49,132.39,0.17]
[1720397841379,8.1485,132.47,132.39,0.17]
[1720397841790,108.1485,132.47,132.39,0.17]
[1720397842070,8.1485,132.44,132.39,0.17]
[1720397842274,100.0,132.45,132.39,0.17]
[1720397842456,100.0,132.43,132.34,58.4729]
[1720397842665,100.0,132.43,132.34,21.7738]
[1720397842867,8.1485,132.46,132.34,27.063]
[1720397843168,8.1485,132.46,132.34,21.7738]
[1720397843169,100.0,132.43,132.34,21.7738]
[1720397843469,8.1485,132.46,132.36,5.2883]
[1720397843648,8.1485,132.46,132.36,6.8515]
[1720397843845,8.1485,132.46,132.35,5.2889]
[1720397844047,8.1485,132.46,132.36,0.17]
[1720397844254,8.1485,132.48,132.39,5.2871]
[1720397844456,8.1485,132.49,132.42,5.2861]
[1720397844660,100.0,132.5,132.43,0.17]
[1720397845066,100.0,132.48,132.43,0.17]
[1720397845272,108.1485,132.52,132.43,0.17]
[1720397845477,23.7198306,132.53,132.43,0.17]
[1720397845680,0.8294306,132.53,132.44,15.9074]
[1720397845867,0.8294306,132.53,132.43,0.17]
[1720397845868,100.0,132.5,132.45,0.17]
[1720397846070,100.0,132.5,132.43,0.17]
[1720397846458,8.1485,132.51,132.43,0.17]
[1720397847064,0.8294306,132.53,132.43,0.17]
[1720397847280,0.8294306,132.53,132.43,5.4557]
[1720397847584,8.1485,132.51,132.43,0.17]
[1720397847883,8.9779306,132.53,132.43,0.17]
[1720397848453,8.9779306,132.53,132.45,5.285]
[1720397848454,0.8294306,132.53,132.45,5.285]
[1720397848652,0.8294306,132.53,132.46,6.4508]
[1720397849884,0.8294306,132.53,132.47,36.694]
[1720397850185,0.8294306,132.53,132.47,31.41]
[1720397850500,0.8294306,132.53,132.48,0.17]
[1720397850789,0.8294306,132.53,132.46,6.2808]
[1720397850997,100.0,132.52,132.46,6.2808]
[1720397851293,100.0,132.52,132.43,37.9476]
[1720397851491,100.0,132.52,132.43,6.5376]
[1720397851663,8.1485,132.51,132.43,6.5376]
[1720397852279,8.9779306,132.53,132.43,6.5376]
[1720397852478,100.0,132.52,132.43,6.5376]
[1720397852870,8.9779306,132.53,132.44,0.17]
[1720397854797,0.8294306,132.53,132.44,0.17]
[1720397855095,8.9779306,132.53,132.44,0.17]
[1720397855400,0.8294306,132.53,132.44,0.17]
[1720397856038,0.8294306,132.53,132.44,7.0215]
[1720397856173,0.8294306,132.53,132.44,0.17]
[1720397856800,100.0,132.5,132.43,6.5376]
[1720397856981,8.1485,132.49,132.4,15.9074]
[1720397857385,100.0,132.5,132.4,15.9074]
[1720397857603,8.1485,132.51,132.4,15.9074]
[1720397857775,100.0,132.5,132.4,15.9074]
[1720397857978,8.1485,132.51,132.4,15.9074]
[1720397858294,100.0,132.5,132.41,0.17]
[1720397858703,8.1485,132.51,132.41,0.17]
[1720397859180,8.9779306,132.53,132.44,5.2851]
[1720397859386,8.9779306,132.53,132.45,0.17]
[1720397860491,8.9779306,132.53,132.46,6.2466]
[1720397860680,0.8294306,132.53,132.47,0.17]
[1720397870030,0.8294306,132.53,132.46,37.6566]
[1720397870226,106.4779306,132.54,132.46,6.2466]
[1720397870614,106.4779306,132.54,132.47,27.91]
[1720397871449,100.0,132.5,132.43,6.1346]
[1720397871739,100.0,132.47,132.43,27.91]
[1720397871912,100.0,132.47,132.37,21.6486]
[1720397872108,100.0,132.48,132.39,27.91]
[1720397872510,6.4779306,132.44,132.37,21.6486]
[1720397872931,100.0,132.45,132.37,21.6486]
[1720397873323,6.4779306,132.48,132.37,21.6486]
[1720397873722,100.0,132.46,132.37,21.6486]
[1720397873935,106.4779306,132.46,132.37,21.6486]
[1720397874334,100.0,132.46,132.38,0.17]
[1720397874514,6.4779306,132.45,132.35,31.44]
[1720397874714,21.8477,132.49,132.35,31.44]
[1720397874715,100.0,132.42,132.35,31.44]
[1720397875039,6.4779306,132.43,132.35,31.44]
[1720397875719,6.4779306,132.45,132.35,31.44]
[1720397876214,6.4779306,132.45,132.36,0.17]
[1720397877336,6.4779306,132.45,132.36,5.4585]
[1720397877832,6.4779306,132.45,132.37,5.2879]
[1720397878044,6.4779306,132.45,132.38,0.17]
[1720397878245,6.4779306,132.45,132.36,5.4585]
[1720397879043,100.0,132.44,132.36,0.17]
[1720397879243,6.4779306,132.45,132.36,0.17]
[1720397880346,6.4779306,132.45,132.36,5.4584]
[1720397880558,6.4779306,132.45,132.36,13.3907]
[1720397880843,100.0,132.44,132.36,0.17]
[1720397881061,6.4779306,132.43,132.36,0.17]
[1720397881540,6.4779306,132.45,132.36,0.17]
[1720397881938,106.4779306,132.45,132.36,5.4585]
[1720397882121,106.4779306,132.45,132.36,0.17]
[1720397882328,6.4779306,132.43,132.36,0.17]
[1720397882754,106.4779306,132.43,132.35,31.44]
[1720397882969,100.0,132.41,132.34,6.176]
[1720397883326,6.4779306,132.39,132.34,6.176]
[1720397883548,100.0,132.41,132.31,6.5303]
[1720397884042,6.4779306,132.4,132.31,6.5303]
[1720397884245,6.5763,132.42,132.32,1.50660048]
[1720397884433,6.4779306,132.44,132.31,6.5303]
[1720397884630,6.4779306,132.44,132.32,8.5220694]
[1720397884841,6.4779306,132.44,132.35,16.242]
[1720397885131,6.4779306,132.44,132.36,5.4585]
[1720397885349,6.4779306,132.44,132.36,0.17]
[1720397885548,6.4779306,132.44,132.35,16.242]
[1720397885549,100.0,132.43,132.35,16.242]
[1720397885752,6.6636,132.46,132.31,23.0222]
[1720397885753,6.4779306,132.4,132.31,23.0222]
[1720397886137,100.0,132.41,132.31,23.0222]